fUSD/lending_fUSD_20260105
["ID","MTS","AMOUNT","RATE_DAILY","PERIOD"]
[400467506,1767597039814,-475.82,0.000169,2]
[400467507,1767597039823,-661.02,0.000169,2]
[400467508,1767597039833,-661.02,0.000169,2]
[400467509,1767597039843,-661.02,0.000169,2]
[400467510,1767597039852,-661.02,0.000169,2]
[400467511,1767597039862,-661.02,0.000169,2]
[400467512,1767597039872,-212.92203508,0.00016976,2]
[400467513,1767597039882,-550.0,0.00016984,2]
[400467514,1767597039892,-780.7,0.00016985,2]
[400467515,1767597039902,-223.54745175,0.00016985,2]
[400467516,1767597039911,-500.0,0.00016985,2]
[400467517,1767597039921,-500.0,0.00016985,2]
[400467518,1767597039930,-500.0,0.00016985,2]
[400467519,1767597039940,-487.02245269,0.00016985,2]
[400467520,1767597039950,-500.0,0.00016985,2]
[400467521,1767597039960,-500.0,0.00016985,2]
[400467522,1767597039970,-500.0,0.00016985,2]
[400467523,1767597039979,-500.0,0.00016985,2]
[400467524,1767597039988,-500.0,0.00016985,2]
[400467525,1767597039997,-451.45381429,0.00016985,2]
[400467526,1767597040006,-500.0,0.00016985,2]
[400467527,1767597040016,-500.0,0.00016985,2]
[400467528,1767597040026,-500.0,0.00016985,2]
[400467529,1767597040036,-500.0,0.00016985,2]
[400467530,1767597040046,-500.0,0.00016985,2]
[400467531,1767597040055,-500.0,0.00016985,2]
[400467532,1767597040065,-500.0,0.00016985,2]
[400467533,1767597040075,-500.0,0.00016985,2]
[400467534,1767597040085,-500.0,0.00016985,2]
[400467535,1767597040095,-500.0,0.00016985,2]
[400467536,1767597040104,-500.0,0.00016985,2]
[400467537,1767597040113,-500.0,0.00016985,2]
[400467538,1767597040123,-500.0,0.00016985,2]
[400467539,1767597040133,-500.0,0.00016985,2]
[400467540,1767597040143,-500.0,0.00016985,2]
[400467541,1767597040154,-500.0,0.00016985,2]
[400467542,1767597040163,-500.0,0.00016985,2]
[400467543,1767597040173,-500.0,0.00016985,2]
[400467544,1767597040182,-500.0,0.00016985,2]
[400467545,1767597040192,-125658.41,0.00016986,2]
[400467546,1767597040202,-250.0,0.00017,2]
[400467547,1767597040211,-661.02,0.00017,2]
[400467548,1767597040220,-479.98,0.00017,2]
[400467549,1767597040229,-482.38,0.00017,2]
[400467550,1767597040238,-661.02,0.00017,2]
[400467551,1767597040247,-661.02,0.00017041,2]
[400467552,1767597040257,-661.02,0.00017041,2]
[400467553,1767597040266,-661.02,0.00017041,2]
[400467554,1767597040276,-661.02,0.00017041,2]
[400467555,1767597040285,-661.02,0.00017041,2]
[400467556,1767597040295,-466.94,0.00017041,2]
[400467557,1767597040307,-661.02,0.00017041,2]
[400467558,1767597040318,-482.38,0.00017041,2]
[400467559,1767597040329,-641.72237605,0.00017099,2]
[400467560,1767597040339,-200.0,0.00017099,2]
[400467561,1767597040348,-207.4,0.00017099,2]
[400467562,1767597040358,-215.0738,0.00017099,2]
[400467563,1767597040367,-223.0315306,0.00017099,2]
[400467564,1767597040378,-231.28369723,0.00017099,2]
[400467565,1767597040387,-239.84119403,0.00017099,2]
[400467566,1767597040396,-661.02,0.000171,2]
[400467567,1767597040406,-661.02,0.000171,2]
[400467568,1767597040417,-150.0,0.00017178,2]
[400467569,1767597040427,-247.29,0.00017186,2]
[400467570,1767597040437,-213.17,0.00017227,2]
[400467571,1767597040446,-780.7,0.00017259,2]
[400467572,1767597040455,-661.02,0.000173,2]
[400467573,1767597040464,-661.02,0.000173,2]
[400467574,1767597040473,-661.02,0.000174,2]
[400467575,1767597040680,-293.5,0.00017423,2]
[400467576,1767597040699,-162.9821105,0.00017462,2]
[400467577,1767597040709,-190.0,0.00017466,2]
[400467578,1767597040718,-661.02,0.000175,2]
[400467579,1767597040728,-168.0,0.00017519,2]
[400467580,1767597040737,-780.7,0.00017533,2]
[400467581,1767597040747,-190.0,0.00017549,2]
[400467582,1767597040757,-190.0,0.00017569,2]
[400467583,1767597040766,-508.60874789,0.00017585,2]
[400467584,1767597040775,-190.0,0.00017586,2]
[400467585,1767597040784,-1000.0,0.000176,2]
[400467586,1767597040794,-190.0,0.00017621,2]
[400467587,1767597040804,-2100.02397756,0.0001764,2]
[400467588,1767597040814,-6132.95085323,0.00017692,2]
[400467589,1767597040823,-4829.22,0.00017728,2]
[400467590,1767597040832,-150.99,0.00017728,2]
[400467591,1767597040850,-12675.15,0.00017728,2]
[400467592,1767597040861,-19997.22,0.00017728,2]
[400467593,1767597040871,-524.73,0.00017728,5]
[400467594,1767597040881,-3943.36,0.00017728,2]
[400467595,1767597040891,-512.76,0.00017728,2]
[400467596,1767597040901,-9999.99,0.00017728,2]
[400467597,1767597040911,-6717.17,0.00017728,2]
[400467598,1767597040920,-999.99,0.00017728,2]
[400467599,1767597040929,-1016.0,0.000178,2]
[400467600,1767597040939,-780.7,0.00017807,2]
[400467601,1767597040949,-276.79039,0.0001782,2]
[400467602,1767597040959,-276.7904,0.0001782,2]
[400467603,1767597040969,-26447.9578998,0.0001783,2]
[400467604,1767597040979,-276.79039,0.0001783,2]
[400467605,1767597040989,-1680.0,0.00017851,2]
[400467606,1767597040998,-420.0,0.00017852,2]
[400467607,1767597041008,-276.7904,0.0001786,2]
[400467608,1767597041018,-1791.95470647,0.0001787,2]
[400467609,1767597041028,-250.0,0.0001787,2]
[400467610,1767597041038,-300.0,0.0001787,2]
[400467611,1767597041049,-305.10486684,0.0001787,2]
[400467612,1767597041059,-195.0,0.0001787,2]
[400467613,1767597041069,-168.0,0.0001787,2]
[400467614,1767597041079,-276.79039,0.0001788,2]
[400467615,1767597041088,-2574.9508091,0.00017899,2]
[400467616,1767597041099,-2574.95080901,0.00017899,2]
[400467617,1767597041108,-2574.95080901,0.00017899,2]
[400467618,1767597041118,-2574.95080901,0.00017899,2]
[400467619,1767597041127,-2574.95080901,0.00017899,2]
[400467620,1767597041137,-2574.95080901,0.000179,2]
[400467621,1767597041147,-2574.95080901,0.000179,2]
[400467622,1767597041156,-2574.95080901,0.000179,2]
[400467623,1767597041166,-1966.98504676,0.000179,2]
[400467628,1767597043267,-151.0,0.00016344,2]
[400467629,1767597043278,-607.96576225,0.000179,2]
[400467630,1767597043287,-2169.72886083,0.000179,2]
[400467631,1767597043297,-202.81668764,0.000179,2]
[400467635,1767597045502,-661.02,0.000167,2]
[400467636,1767597045514,-1200.0,0.00017834,2]
[400467637,1767597045528,-9797.18331236,0.000179,2]
[400467638,1767597045538,-1000.0,0.000179,2]
[400467639,1767597045547,-2574.95080901,0.000179,2]
[400467640,1767597045557,-1426.95072483,0.000179,2]
[400467641,1767597045567,-276.7904,0.0001791,2]
[400467642,1767597045580,-1680.0,0.00017933,2]
[400467643,1767597045590,-151.216,0.00017972,2]
[400467644,1767597045601,-500.0,0.00017973,2]
[400467645,1767597045610,-517.25462931,0.00017982,2]
[400467646,1767597045619,-1078.47859341,0.00017995,2]
[400467647,1767597045629,-150.0,0.00017999,2]
[400467648,1767597045640,-1171.02247827,0.00017999,5]
[400467649,1767597045651,-1171.02247827,0.00017999,5]
[400467650,1767597045661,-1171.02247828,0.00017999,5]
[400467651,1767597045670,-3497.2484817,0.00017999,2]
[400467652,1767597045680,-29098.076869,0.00017999,2]
[400467653,1767597045691,-3454.4578165,0.00017999,2]
[400467654,1767597045701,-7619.64122222,0.00017999,2]
[400467655,1767597045710,-68154.9208437,0.00017999,2]
[400467656,1767597045720,-965.1474354,0.00017999,2]
[400467657,1767597045731,-317.47275185,0.00017999,2]
[400467658,1767597045740,-10059.9590662,0.00017999,2]
[400467659,1767597045749,-167.7173702,0.00017999,2]
[400467660,1767597045759,-190.833,0.00018,2]
[400467661,1767597045769,-1332.421,0.00018,2]
[400467662,1767597045778,-3466.0,0.00018,2]
[400467663,1767597045788,-614.0,0.00018,2]
[400467664,1767597045798,-1404.0,0.00018,2]
[400467665,1767597045808,-1266.0,0.00018,2]
[400467666,1767597045817,-433.0,0.00018,2]
[400467667,1767597045827,-6548.0,0.00018,2]
[400467668,1767597045836,-2435.0,0.00018,2]
[400467669,1767597045846,-216020.02732822,0.00018,2]
[400467670,1767597045862,-3644.00857318,0.00018,2]
[400467671,1767597045873,-2162.13827737,0.00018,2]
[400467672,1767597045884,-1832.67330149,0.00018,2]
[400467673,1767597045895,-384.996,0.00018,2]
[400467674,1767597045906,-315.4,0.00018,2]
[400467675,1767597045917,-35008.71908417,0.00018,2]
[400467676,1767597045928,-773.17359864,0.00018,2]
[400467677,1767597045945,-305.43973936,0.00018,2]
[400467678,1767597045956,-225005.82512305,0.00018,2]
[400467679,1767597045967,-573025.36418793,0.00018,2]
[400467680,1767597045978,-44950.0,0.00018,2]
[400467700,1767597118879,635.07,0.00013699,2]
[400467701,1767597148221,626.4758951,0.00032,120]
[400467722,1767597526075,4673.92,0.00032877,120]
[400467724,1767597682541,602.64326461,0.00032877,120]
[400467725,1767597779592,202.29,0.00032877,120]
[400467729,1767597933138,-153.68743037,0.00016317,2]
[400467730,1767597933163,-287.0,0.00016329,2]
[400467731,1767597933185,-249.12163361,0.0001633,2]
[400467732,1767597933209,-167.03727144,0.00016481,5]
[400467733,1767597933232,-212.92203508,0.00016565,2]
[400467734,1767597933254,-55.42053689,0.00016572,2]
[400467740,1767598097062,-4720.84207949,0.000162,5]
[400467741,1767598097094,-3939.56267804,0.00016475,2]
[400467742,1767598097125,-198.18868071,0.00016475,5]
[400467743,1767598097152,-300.0,0.00016571,2]
[400467744,1767598097178,-1200.0,0.00016571,2]
[400467745,1767598097203,-244.57946311,0.00016572,2]
[400467746,1767598097229,-1200.0,0.00016572,2]
[400467747,1767598097254,-550.0,0.00016573,2]
[400467748,1767598097284,-500.0,0.00016574,2]
[400467749,1767598097315,-500.0,0.00016574,2]
[400467750,1767598097344,-500.0,0.00016574,2]
[400467751,1767598097374,-500.0,0.00016574,2]
[400467752,1767598097403,-500.0,0.00016574,2]
[400467753,1767598097432,-500.0,0.00016574,2]
[400467754,1767598097461,-500.0,0.00016574,2]
[400467755,1767598097489,-500.0,0.00016574,2]
[400467756,1767598097517,-500.0,0.00016574,2]
[400467757,1767598097546,-500.0,0.00016574,2]
[400467758,1767598097577,-500.0,0.00016574,2]
[400467759,1767598097605,-500.0,0.00016574,2]
[400467760,1767598097634,-500.0,0.00016574,2]
[400467761,1767598097663,-500.0,0.00016574,2]
[400467762,1767598097692,-500.0,0.00016574,2]
[400467763,1767598097720,-500.0,0.00016574,2]
[400467764,1767598097748,-500.0,0.00016574,2]
[400467765,1767598097778,-500.0,0.00016574,2]
[400467766,1767598097811,-500.0,0.00016574,2]
[400467767,1767598097841,-500.0,0.00016574,2]
[400467768,1767598097875,-500.0,0.00016574,2]
[400467769,1767598097904,-500.0,0.00016574,2]
[400467770,1767598097933,-500.0,0.00016574,2]
[400467771,1767598097964,-500.0,0.00016574,2]
[400467772,1767598097993,-500.0,0.00016574,2]
[400467773,1767598098022,-451.45381429,0.00016574,2]
[400467774,1767598098046,-780.7,0.00016574,2]
[400467775,1767598098070,-508.60874789,0.00016574,2]
[400467776,1767598098094,-512.76,0.00016574,2]
[400467777,1767598098120,-999.99,0.00016574,2]
[400467778,1767598098144,-4829.22,0.00016574,2]
[400467779,1767598098168,-9999.99,0.00016574,2]
[400467780,1767598098201,-47389.10453647,0.00016575,2]
[400467795,1767598231545,-335.94814987,0.00016245,2]
[400467796,1767598231555,-276.40568569,0.00016245,2]
[400467797,1767598231568,-80.34174791,0.00016245,2]
[400467798,1767598231578,-151.0,0.00016252,2]
[400467799,1767598231587,-151.0,0.00016252,2]
[400467800,1767598231596,-2.14440179,0.00016252,2]
[400467801,1767598231763,-148.85559821,0.00016252,2]
[400467802,1767598231772,-151.0,0.00016252,2]
[400467803,1767598231781,-147.1433355,0.00016472,2]
[400467805,1767598231933,-352.8566645,0.00016472,2]
[400467806,1767598231943,-51.68177711,0.00016574,2]
[400467807,1767598232003,-248.31822289,0.00016574,2]
[400467808,1767598232012,-140.934513,0.00016574,2]
[400467809,1767598232023,-575.6218544,0.00016574,2]
[400467810,1767598232036,-462.11065713,0.00016574,2]
[400467811,1767598237638,-21.33297547,0.00016574,2]
[400467812,1767598237648,-300.0,0.00016574,2]
[400467813,1767598237657,-289.8724757,0.00016574,2]
[400467814,1767598238393,-9.5380617,0.00016263,2]
[400467815,1767598238407,-141.4619383,0.00016263,2]
[400467816,1767598238416,-151.0,0.00016263,2]
[400467817,1767598238426,-260.1275243,0.00016574,2]
[400467818,1767598238437,-13074.54224853,0.00016575,2]
[400467819,1767598238453,-782.18603,0.00016575,2]
[400467820,1767598239712,-1820.89468532,0.00016575,2]
[400467821,1767598239828,-459.546775,0.00016575,2]
[400467822,1767598239841,-462.4190307,0.00016575,2]
[400467823,1767598239852,-532.89841,0.00016575,2]
[400467824,1767598239885,-2864.73282045,0.00016575,2]
[400467825,1767598239894,-1965.45355433,0.00016575,2]
[400467826,1767598239907,-1158.36447846,0.00016575,2]
[400467827,1767598239946,-3593.35196721,0.00016575,2]
[400467828,1767598239955,-3943.36,0.00016575,2]
[400467829,1767598239964,-524.73,0.00016575,5]
[400467830,1767598239974,-150.99,0.00016575,2]
[400467831,1767598239983,-3939.56267802,0.00016633,2]
[400467832,1767598239992,-150.0,0.00016682,2]
[400467833,1767598240001,-500.0,0.00016702,2]
[400467834,1767598240010,-500.0,0.00016702,2]
[400467835,1767598240018,-500.0,0.00016702,2]
[400467836,1767598240027,-500.0,0.00016702,2]
[400467837,1767598240036,-487.02245269,0.00016702,2]
[400467838,1767598240046,-439.05042381,0.00016702,2]
[400467839,1767598240055,-3254.05,0.00016703,2]
[400467840,1767598240064,-291.08491127,0.00016767,2]
[400467841,1767598240074,-59834.5201544,0.00016768,2]
[400467842,1767598240083,-3939.56267802,0.00016792,2]
[400467843,1767598240092,-780.7,0.00016848,2]
[400467844,1767598240102,-2068.83,0.00016911,2]
[400467845,1767598240111,-3939.56267802,0.0001695,2]
[400467846,1767598240120,-250.0,0.00017,2]
[400467847,1767598240130,-482.38,0.00017041,2]
[400467848,1767598240139,-661.02,0.00017041,2]
[400467849,1767598240148,-482.38,0.00017041,2]
[400467850,1767598240158,-661.02,0.00017041,2]
[400467851,1767598240168,-661.02,0.00017041,2]
[400467852,1767598240178,-482.38,0.00017041,2]
[400467853,1767598240187,-473.42,0.00017041,2]
[400467854,1767598240198,-661.02,0.00017041,2]
[400467855,1767598240208,-661.02,0.00017041,2]
[400467856,1767598240219,-641.72237605,0.00017099,2]
[400467857,1767598240229,-200.0,0.00017099,2]
[400467858,1767598240238,-207.4,0.00017099,2]
[400467859,1767598240247,-215.0738,0.00017099,2]
[400467860,1767598240256,-223.0315306,0.00017099,2]
[400467861,1767598240265,-231.28369723,0.00017099,2]
[400467862,1767598240275,-239.84119403,0.00017099,2]
[400467863,1767598240284,-3939.56267802,0.00017108,2]
[400467864,1767598240293,-780.7,0.00017122,2]
[400467865,1767598240302,-150.0,0.00017178,2]
[400467866,1767598240314,-3939.56267802,0.00017267,2]
[400467867,1767598240323,-647.59735787,0.00017316,2]
[400467868,1767598240332,-228.0,0.00017342,2]
[400467869,1767598240342,-780.7,0.00017396,2]
[400467870,1767598240351,-3939.56267802,0.00017425,2]
[400467871,1767598240360,-1321.98621336,0.00017477,2]
[400467872,1767598240370,-162.9821105,0.00017488,2]
[400467873,1767598240380,-1489.65987265,0.0001758,2]
[400467874,1767598240389,-3939.56267802,0.00017583,2]
[400467875,1767598240398,-1000.0,0.00017597,2]
[400467876,1767598240408,-183.0,0.0001761,2]
[400467877,1767598240417,-2100.02397756,0.0001764,2]
[400467878,1767598240426,-293.5,0.00017656,2]
[400467879,1767598240435,-1229.7918423,0.00017657,2]
[400467880,1767598240444,-213.17,0.00017664,2]
[400467881,1767598240453,-780.7,0.0001767,2]
[400467882,1767598240464,-479.0,0.00017684,2]
[400467883,1767598240475,-6132.95085323,0.00017692,2]
[400467884,1767598240484,-1000.0,0.000177,2]
[400467885,1767598240495,-3939.56267802,0.00017742,2]
[400467886,1767598240504,-1000.0,0.000178,2]
[400467887,1767598240513,-3600.56412783,0.000178,2]
[400467888,1767598240524,-207.49943,0.0001782,2]
[400467889,1767598240534,-207.49944,0.0001782,2]
[400467890,1767598240543,-300.0,0.0001782,2]
[400467891,1767598240553,-195.0,0.0001782,2]
[400467892,1767598240563,-1791.95470647,0.0001782,2]
[400467893,1767598240572,-26447.9578998,0.0001783,2]
[400467894,1767598240582,-207.49944,0.0001783,2]
[400467895,1767598240592,-6238.7139685,0.00017858,2]
[400467896,1767598240605,-207.49944,0.0001786,2]
[400467897,1767598240616,-250.0,0.0001787,2]
[400467898,1767598240625,-193.0,0.0001787,2]
[400467899,1767598240634,-207.49944,0.0001788,2]
[400467900,1767598240645,-166.42,0.0001789,2]
[400467901,1767598240655,-1016.0,0.000179,2]
[400467902,1767598240664,-3939.56267802,0.000179,2]
[400467903,1767598240673,-195.35333666,0.000179,2]
[400467904,1767598240683,-207.49944,0.0001791,2]
[400467905,1767598240692,-305.10486684,0.0001792,2]
[400467906,1767598240702,-780.7,0.00017944,2]
[400467907,1767598240713,-3068.5306847,0.00017997,2]
[400467908,1767598240722,-940.8391099,0.00017997,2]
[400467909,1767598240731,-97449.4977176,0.00017997,2]
[400467910,1767598240740,-174.1177492,0.00017997,2]
[400467911,1767598240749,-433.0,0.00018,2]
[400467912,1767598240758,-1266.0,0.00018,2]
[400467913,1767598240767,-915.998,0.00018,2]
[400467914,1767598240777,-1200.0,0.00018,2]
[400467915,1767598240787,-3466.0,0.00018,2]
[400467916,1767598240797,-1404.0,0.00018,2]
[400467917,1767598240807,-304029.74871429,0.00018,2]
[400467918,1767598240816,-1787.53129268,0.00018,4]
[400467919,1767598240829,-25658.24390021,0.00018,2]
[400467920,1767598240842,-27651.09163192,0.00018,2]
[400467924,1767598243699,-518.31706067,0.00017857,2]
[400467932,1767598243764,-95.68293933,0.00017857,2]
[400467935,1767598243773,-343.4849021,0.00018,2]
[400467936,1767598244956,-661.02,0.000171,2]
[400467937,1767598244966,-184481.3733318,0.00018,2]
[400467971,1767598245653,-533.9999989,0.00018,2]
[400467972,1767598245666,-5991.65458347,0.00018,2]
[400467973,1767598245677,-1450.56010005,0.00018,2]
[400467974,1767598245688,-786.0665916,0.00018,2]
[400467975,1767598245713,-3402.049892,0.00018,2]
[400467976,1767598245725,-1063.53697006,0.00018,2]
[400467977,1767598245736,-118770.75402174,0.00018,2]
[400467978,1767598245747,-155961.84291165,0.00018,2]
[400467979,1767598245904,-125.02098971,0.00018,2]
[400467987,1767598355489,9302.89,0.00032877,120]
[400467994,1767599358145,-166.66,0.00016031,2]
[400467999,1767599431773,-166.66,0.00016369,2]
[400468000,1767599431783,-151.0,0.00016379,2]
[400468001,1767599431794,-3507.99,0.00016438,2]
[400468002,1767599431804,-166.66,0.00016706,2]
[400468003,1767599431813,-166.66,0.00017044,2]
[400468004,1767599431823,-1200.0,0.00017097,2]
[400468005,1767599431832,-1200.0,0.00017098,2]
[400468006,1767599431842,-300.0,0.00017098,2]
[400468007,1767599431851,-200.0,0.00017099,2]
[400468008,1767599431860,-207.4,0.00017099,2]
[400468009,1767599431870,-215.0738,0.00017099,2]
[400468010,1767599431879,-223.0315306,0.00017099,2]
[400468011,1767599431890,-231.28369723,0.00017099,2]
[400468012,1767599431900,-239.84119403,0.00017099,2]
[400468013,1767599431910,-500.0,0.00017109,2]
[400468014,1767599431919,-166.66,0.000172,2]
[400468015,1767599431928,-661.02,0.000172,2]
[400468016,1767599431938,-661.02,0.000172,2]
[400468017,1767599431947,-661.02,0.000172,2]
[400468018,1767599431957,-661.02,0.000172,2]
[400468019,1767599431966,-661.02,0.000172,2]
[400468020,1767599431976,-1480.78,0.00017219,2]
[400468021,1767599431986,-661.02,0.00017241,2]
[400468022,1767599431996,-661.02,0.000173,2]
[400468023,1767599432005,-661.02,0.000173,2]
[400468024,1767599432014,-479.0,0.0001737,2]
[400468025,1767599432026,-334.61601208,0.00017371,2]
[400468026,1767599432035,-10284.85409912,0.00017371,2]
[400468027,1767599432047,-356.39185192,0.00017371,2]
[400468028,1767599432058,-1112.30432406,0.00017371,2]
[400468029,1767599432090,-539.07428944,0.00017371,2]
[400468030,1767599432102,-382.52543546,0.00017371,2]
[400468031,1767599432111,-150.99,0.00017371,2]
[400468032,1767599432121,-166.66,0.00017381,2]
[400468033,1767599432131,-213.17,0.00017416,2]
[400468034,1767599432141,-641.72237605,0.00017489,2]
[400468035,1767599432155,-55690.34289552,0.000175,2]
[400468036,1767599432164,-162.9821105,0.00017513,2]
[400468037,1767599432174,-250.0,0.00017604,2]
[400468038,1767599432183,-293.5,0.0001761,2]
[400468039,1767599432195,-305.10486684,0.00017634,2]
[400468040,1767599432204,-193.0,0.00017634,2]
[400468041,1767599432215,-1791.95470647,0.00017634,2]
[400468042,1767599432224,-195.0,0.00017634,2]
[400468043,1767599432233,-300.0,0.00017634,2]
[400468044,1767599432242,-250.0,0.00017634,2]
[400468045,1767599432252,-2100.02397756,0.0001764,2]
[400468046,1767599432262,-203.75943789,0.00017699,2]
[400468047,1767599432271,-661.02,0.000177,2]
[400468048,1767599432282,-661.02,0.000177,2]
[400468049,1767599432291,-661.02,0.000177,2]
[400468050,1767599432301,-661.02,0.000177,2]
[400468051,1767599432311,-6305.14648262,0.000177,2]
[400468052,1767599432320,-455.94087038,0.000177,2]
[400468053,1767599432332,-205.07912962,0.000177,2]
[400468054,1767599432342,-661.02,0.000177,2]
[400468055,1767599432352,-73.90087038,0.000177,2]
[400468057,1767599437811,-393.03912962,0.000177,2]
[400468058,1767599437820,-683.12,0.000177,2]
[400468059,1767599437830,-166.66,0.00017719,2]
[400468060,1767599437839,-240.75976372,0.00017724,2]
[400468061,1767599437850,-2887.96535688,0.00017724,2]
[400468062,1767599437859,-410.23734404,0.00017744,2]
[400468064,1767599437869,-1349.90711029,0.00017744,2]
[400468065,1767599437975,-209.63688468,0.00017744,2]
[400468066,1767599437984,-2017.16733844,0.00017746,2]
[400468067,1767599437995,-4115.78351479,0.00017746,2]
[400468068,1767599438005,-4934.27832649,0.00017756,2]
[400468069,1767599438016,-535214.71487351,0.00017756,2]
[400468070,1767599438025,-1969.78133901,0.00017767,2]
[400468071,1767599438035,-1969.78133901,0.00017789,2]
[400468072,1767599438044,-1016.0,0.000178,2]
[400468073,1767599438054,-195.35333666,0.000178,2]
[400468074,1767599438063,-1969.78133901,0.00017811,2]
[400468075,1767599438073,-539.20010656,0.00017825,2]
[400468076,1767599438083,-26447.9578998,0.0001783,2]
[400468077,1767599438092,-1969.78133901,0.00017833,2]
[400468078,1767599438102,-1969.78133901,0.00017856,2]
[400468079,1767599438111,-7838.25914785,0.00017856,3]
[400468087,1767599439909,-151.0,0.00016393,2]
[400468088,1767599439919,-151.0,0.00016393,2]
[400468089,1767599439928,-1321.72018651,0.00017856,3]
[400468090,1767599439950,-462.02,0.00017856,3]
[400468091,1767599439962,-319.57419,0.00017856,3]
[400468092,1767599439974,-15058.42647564,0.00017856,3]
[400468093,1767599439983,-25000.0,0.00017865,3]
[400468094,1767599439993,-25000.0,0.00017874,3]
[400468095,1767599440003,-1969.78133901,0.00017878,2]
[400468096,1767599440012,-25000.0,0.00017882,3]
[400468097,1767599440022,-25000.0,0.00017891,3]
[400468098,1767599440031,-25000.0,0.000179,3]
[400468099,1767599440041,-22562.40135957,0.000179,3]
[400468100,1767599440051,-1969.78133901,0.000179,2]
[400468101,1767599440060,-1000.0,0.000179,2]
[400468102,1767599440069,-683.12,0.00017974,2]
[400468103,1767599440079,-93579.2821718,0.0001799,2]
[400468104,1767599440088,-1114.9568591,0.0001799,2]
[400468105,1767599440098,-4901.1151933,0.0001799,2]
[400468106,1767599440107,-942.7810532,0.0001799,2]
[400468107,1767599440116,-2745.5361473,0.0001799,2]
[400468108,1767599440126,-837.45489,0.0001799,2]
[400468109,1767599440135,-20893.4612884,0.0001799,2]
[400468110,1767599440146,-3466.0,0.00018,2]
[400468111,1767599440159,-1404.0,0.00018,2]
[400468112,1767599440168,-614.0,0.00018,2]
[400468113,1767599440179,-1266.0,0.00018,2]
[400468114,1767599440190,-433.0,0.00018,2]
[400468115,1767599440199,-5503.18,0.00018,2]
[400468116,1767599440209,-2435.0,0.00018,2]
[400468117,1767599440219,-150.0,0.00018,2]
[400468118,1767599440229,-237763.80083789,0.00018,2]
[400468119,1767599440242,-412.8989822,0.00018,2]
[400468120,1767599440253,-273.27992881,0.00018,2]
[400468127,1767599445919,-915.998,0.00018,2]
[400468128,1767599445930,-991.43036594,0.00018,2]
[400468131,1767599446304,-894.0,0.00018,2]
[400468132,1767599446316,-1010.1,0.00018,2]
[400468133,1767599446330,-526.0362455,0.00018,2]
[400468134,1767599446345,-518.799982,0.00018,2]
[400468136,1767599446356,-4095.31242003,0.00018,2]
[400468137,1767599446367,-16906.38389332,0.00018,2]
[400468138,1767599447323,-468.72833472,0.00018,2]
[400468139,1767599447335,-336.24,0.00018,2]
[400468140,1767599447346,-662.76,0.00018,2]
[400468141,1767599447359,-351293.10498484,0.00018,2]
[400468147,1767599460981,6250.567964,1.77e-05,3]
[400468148,1767599461012,15649.11639264,1.77e-05,3]
[400468149,1767599461045,90325.0,1.77e-05,3]
[400468150,1767599461079,100000.0,1.77e-05,3]
[400468151,1767599461105,4832.50770498,1.77e-05,3]
[400468152,1767599461128,5353.507446,1.77e-05,3]
[400468153,1767599461155,12989.41242926,1.77e-05,3]
[400468154,1767599461180,4783.42033936,1.77e-05,3]
[400468155,1767599461207,13115.65909933,1.77e-05,3]
[400468156,1767599461237,50702.17490862,1.77e-05,3]
[400468164,1767599900803,350.0,0.00032876,120]
[400468169,1767600433118,-309.04181131,0.00016662,2]
[400468170,1767600453255,-151.0,0.0001638,2]
[400468171,1767600453277,-99.55981857,0.0001638,2]